bitfinex/quotes_BTCUSD_20251009
["timestamp","ask_amount","ask_price","bid_price","bid_amount"]
[1759997126722,1.2871965,121990.0,121980.0,0.00307207]
[1759997127108,1.5186365,121990.0,121980.0,0.00307207]
[1759997127547,1.2871965,121990.0,121980.0,0.00307207]
[1759997127791,1.5186365,121990.0,121980.0,0.00307207]
[1759997129836,1.85947116,121990.0,121980.0,1e-08]
[1759997130271,1.5186365,121990.0,121980.0,1e-08]
[1759997130686,1.85947116,121990.0,121980.0,1e-08]
[1759997131096,1.77419116,121990.0,121980.0,1e-08]
[1759997131349,1.54275116,121990.0,121980.0,1e-08]
[1759997131581,1.5186365,121990.0,121980.0,1e-08]
[1759997131975,1.85947116,121990.0,121980.0,1e-08]
[1759997133293,1.54275116,121990.0,121980.0,1e-08]
[1759997133510,1.5186365,121990.0,121980.0,1e-08]
[1759997135204,1.49438562,121990.0,121980.0,1e-08]
[1759997136913,1.17766562,121990.0,121980.0,1e-08]
[1759997137351,1.49438562,121990.0,121980.0,1e-08]
[1759997139025,1.49442562,121990.0,121980.0,1e-08]
[1759997139419,1.17766562,121990.0,121980.0,1e-08]
[1759997139836,1.40910562,121990.0,121980.0,1e-08]
[1759997141689,1.40908289,121990.0,121980.0,1e-08]
[1759997142314,1.42669246,121990.0,121980.0,1e-08]
[1759997143162,1.19525246,121990.0,121980.0,1e-08]
[1759997143409,1.42672465,121990.0,121980.0,1e-08]
[1759997144196,1.45097553,121990.0,121980.0,1e-08]
[1759997145174,1.45098548,121990.0,121980.0,1e-08]
[1759997145397,1.47303938,121990.0,121980.0,1e-08]
[1759997147236,1.5025203,121990.0,121980.0,1e-08]
[1759997151271,1.47303938,121990.0,121980.0,1e-08]
[1759997151945,1.84331496,121990.0,121980.0,1e-08]
[1759997152173,1.63496558,121990.0,121980.0,1e-08]
[1759997152405,1.86632558,121990.0,121980.0,1e-08]
[1759997153084,1.29413092,121990.0,121980.0,1e-08]
[1759997153303,1.52559227,121990.0,121980.0,1e-08]
[1759997153530,1.50353837,121990.0,121980.0,1e-08]
[1759997155129,1.84437303,121990.0,121980.0,1e-08]
[1759997155363,1.86645821,121990.0,121980.0,1e-08]
[1759997155595,1.86645869,121990.0,121980.0,1e-08]
[1759997155791,1.52562403,121990.0,121980.0,1e-08]
[1759997156045,1.29422403,121990.0,121980.0,1e-08]
[1759997156263,1.52562403,121990.0,121980.0,1e-08]
[1759997156715,1.51028649,121990.0,121980.0,1e-08]
[1759997156997,1.52562335,121990.0,121980.0,1e-08]
[1759997157220,1.86645801,121990.0,121980.0,1e-08]
[1759997157873,1.86645778,121990.0,121980.0,1e-08]
[1759997159565,1.79020966,121990.0,121980.0,1e-08]
[1759997159784,3.20275717,121990.0,121910.0,0.0004]
[1759997160008,1.19744131,121920.0,121910.0,0.0004]
[1759997160258,1.5281,121920.0,121910.0,0.0004]
[1759997160547,0.12668869,121920.0,121910.0,0.0041]
[1759997160769,0.63156534,121920.0,121910.0,0.01680554]
[1759997160979,0.65576534,121920.0,121910.0,0.0004]
[1759997161184,0.65576534,121920.0,121910.0,0.00090389]
[1759997161607,0.64042871,121920.0,121910.0,0.01730943]
[1759997161826,0.65574701,121920.0,121910.0,0.01730943]
[1759997162049,0.64042871,121920.0,121910.0,0.03130943]
[1759997162900,0.64042871,121920.0,121910.0,0.03230943]
[1759997163542,0.64042871,121920.0,121910.0,0.01490389]
[1759997163727,0.64142871,121920.0,121910.0,0.01590389]
[1759997164697,0.69114228,121920.0,121910.0,0.01590389]
[1759997164925,1.26429694,121920.0,121910.0,0.01590389]
[1759997165144,1.26433694,121920.0,121910.0,0.01590389]
[1759997165565,1.26437694,121920.0,121910.0,0.01590389]
[1759997165795,1.26437694,121920.0,121910.0,0.01953727]
[1759997166421,1.03197694,121920.0,121910.0,0.01953727]
[1759997166630,1.26441694,121920.0,121910.0,0.01953727]
[1759997167672,1.60441694,121920.0,121910.0,0.01953727]
[1759997168085,1.38725634,121920.0,121910.0,0.01953727]
[1759997168283,1.37197694,121920.0,121910.0,0.01953727]
[1759997168496,1.60441694,121920.0,121910.0,0.01953727]
[1759997168706,1.37197694,121920.0,121910.0,0.01953727]
[1759997168921,1.60441694,121920.0,121910.0,0.01953727]
[1759997170035,0.69030762,121920.0,121910.0,0.01953727]
[1759997170248,1.57420064,121920.0,121910.0,0.01953727]
[1759997170890,1.34180064,121920.0,121910.0,0.01953727]
[1759997171109,1.57420064,121920.0,121910.0,0.01953727]
[1759997171745,1.34180064,121920.0,121910.0,0.01953727]
[1759997171989,1.57420064,121920.0,121910.0,0.01953727]
[1759997172196,1.64191217,121920.0,121910.0,0.01953727]
[1759997172628,1.40951217,121920.0,121910.0,0.01953727]
[1759997172834,1.64191217,121920.0,121910.0,0.01953727]
[1759997173859,1.4958262,121920.0,121910.0,0.01953727]
[1759997174069,1.7282262,121920.0,121910.0,0.01953727]
[1759997177120,1.7281862,121920.0,121910.0,0.01953727]
[1759997179425,1.4958262,121920.0,121910.0,0.01953727]
[1759997179635,1.47215175,121920.0,121910.0,0.01953727]
[1759997180078,1.4958262,121920.0,121910.0,0.01953727]
[1759997180517,1.7281462,121920.0,121910.0,0.01953727]
[1759997180707,1.4958262,121920.0,121910.0,0.01953727]
[1759997180934,1.7281462,121920.0,121910.0,0.01953727]
[1759997181142,1.7281862,121920.0,121910.0,0.01953727]
[1759997183754,1.7281462,121920.0,121910.0,0.01953727]
[1759997184187,1.74342117,121920.0,121910.0,0.01953727]
[1759997185532,1.75106091,121920.0,121910.0,0.01953727]
[1759997186017,1.51874091,121920.0,121910.0,0.00553727]
[1759997186226,1.75106091,121920.0,121910.0,0.01253727]
[1759997186439,1.75006091,121920.0,121910.0,0.01153727]
[1759997186637,1.75306091,121920.0,121910.0,0.01253727]
[1759997187271,0.98507756,121920.0,121910.0,0.01253727]
[1759997187502,1.75306091,121920.0,121910.0,0.01253727]
[1759997189382,1.75302091,121920.0,121910.0,0.01253727]
[1759997189908,1.52074091,121920.0,121910.0,0.01253727]
[1759997190119,1.74775253,121920.0,121910.0,0.01253727]
[1759997190321,1.7707302,121920.0,121910.0,0.01253727]
[1759997190582,1.76307098,121920.0,121910.0,0.01253727]
[1759997190784,1.74775253,121920.0,121910.0,0.01253727]
[1759997192282,1.52313445,121920.0,121910.0,0.01253727]
[1759997192984,1.74771253,121920.0,121910.0,0.01253727]
[1759997193813,1.76303915,121920.0,121910.0,0.01253727]
[1759997194053,1.51547253,121920.0,121910.0,0.01253727]
[1759997194265,1.76303928,121920.0,121910.0,0.01253727]
[1759997194661,1.74771253,121920.0,121910.0,0.01253727]
[1759997195968,2.30814034,121920.0,121910.0,0.01253727]
[1759997196189,2.54034034,121920.0,121910.0,0.01253727]
[1759997196990,1.79535871,121920.0,121910.0,0.01253727]
[1759997197617,2.33114206,121920.0,121910.0,0.01253727]
[1759997197797,2.56338206,121920.0,121910.0,0.01253727]
[1759997198827,2.5854008,121920.0,121910.0,0.01253727]
[1759997199863,2.3531608,121920.0,121910.0,0.01253727]
[1759997200070,2.5853608,121920.0,121910.0,0.01253727]
[1759997203804,2.3531608,121920.0,121910.0,0.01253727]
[1759997204006,1.87805299,121920.0,121910.0,0.01253727]
[1759997204468,1.56049299,121920.0,121910.0,0.01253727]
[1759997204673,1.87805299,121920.0,121910.0,0.01253727]
[1759997205106,1.56049299,121920.0,121910.0,0.01253727]
[1759997205238,1.85607425,121920.0,121910.0,0.01253727]
[1759997206477,1.62383425,121920.0,121910.0,0.01253727]
[1759997206891,1.53847425,121920.0,121910.0,0.01253727]
[1759997207102,1.85603425,121920.0,121910.0,0.01253727]
[1759997207870,1.53847425,121920.0,121910.0,0.01253727]
[1759997208086,1.85603425,121920.0,121910.0,0.01253727]
[1759997208935,1.53847425,121920.0,121910.0,0.01253727]
[1759997209142,1.85603425,121920.0,121910.0,0.01253727]
[1759997209993,2.6240176,121920.0,121910.0,0.01213727]
[1759997210224,2.6240176,121920.0,121880.0,0.0004]
[1759997210225,0.16408236,121890.0,121880.0,0.0004]
[1759997210444,0.50409583,121880.0,121870.0,0.0004]
[1759997210659,1.65536297,121880.0,121870.0,0.0004]
[1759997211079,1.4797519,121880.0,121870.0,0.0004]
[1759997211316,1.7123519,121880.0,121870.0,0.0004]
[1759997211710,2.48033525,121880.0,121870.0,0.0004]
[1759997211920,2.56133205,121880.0,121870.0,0.0184]
[1759997212328,1.53510004,121880.0,121870.0,0.0004]
[1759997212535,2.53772339,121880.0,121870.0,0.0084]
[1759997212751,1.51241558,121880.0,121870.0,0.0084]
[1759997212963,1.83041558,121880.0,121870.0,0.0084]
[1759997213181,1.51241558,121880.0,121870.0,0.0084]
[1759997213399,1.83041558,121880.0,121870.0,0.0084]
[1759997213605,1.83037558,121880.0,121870.0,0.0084]
[1759997213842,1.89159219,121880.0,121870.0,0.0084]
[1759997214845,1.57363219,121880.0,121870.0,0.0084]
[1759997215068,1.80627219,121880.0,121870.0,0.0084]
[1759997215269,1.57363219,121880.0,121870.0,0.0084]
[1759997215481,1.80627219,121880.0,121870.0,0.0084]
[1759997215694,1.55027774,121880.0,121870.0,0.0084]
[1759997215908,1.80627219,121880.0,121870.0,0.0084]
[1759997216531,1.57363219,121880.0,121870.0,0.01044603]
[1759997216796,1.80623219,121880.0,121870.0,0.01044603]
[1759997217032,1.57363219,121880.0,121870.0,0.01044603]
[1759997217244,1.79857638,121880.0,121870.0,0.01044603]
[1759997217449,1.56597638,121880.0,121870.0,0.01044603]
[1759997217669,1.79857638,121880.0,121870.0,0.01044603]
[1759997218080,1.56597638,121880.0,121870.0,0.01044603]
[1759997218286,1.79853622,121880.0,121870.0,0.01044603]
[1759997219049,1.56593622,121880.0,121870.0,0.01044603]
[1759997219264,1.78326465,121880.0,121870.0,0.01044603]
[1759997220520,1.79853642,121880.0,121870.0,0.01044603]
[1759997220735,1.79849642,121880.0,121870.0,0.01044603]
[1759997222290,1.80613163,121880.0,121870.0,0.01044603]
[1759997224275,1.55013718,121880.0,121870.0,0.01044603]
[1759997224738,1.80613163,121880.0,121870.0,0.01044603]
[1759997227735,1.23758038,121880.0,121870.0,0.01044603]
[1759997227945,1.46246517,121880.0,121870.0,0.01044603]
[1759997228381,1.47010279,121880.0,121870.0,0.01044603]
[1759997228595,0.66437728,121880.0,121870.0,0.01044603]
[1759997228806,0.89746234,121880.0,121870.0,0.01044603]
[1759997229017,1.12998234,121880.0,121870.0,0.01044603]
[1759997229304,0.64146789,121880.0,121870.0,0.01044603]
[1759997229528,0.55746234,121880.0,121870.0,0.01044603]
[1759997229811,0.78998234,121880.0,121870.0,0.01044603]
[1759997230686,0.79002234,121880.0,121870.0,0.01044603]
[1759997231130,0.87001914,121880.0,121870.0,0.01044603]
[1759997231368,1.12601359,121880.0,121870.0,0.01044603]
[1759997232222,1.12597359,121880.0,121870.0,0.01044603]
[1759997232631,0.89345359,121880.0,121870.0,0.01044603]
[1759997232837,1.04597679,121880.0,121870.0,0.01044603]
[1759997235651,0.81345679,121880.0,121870.0,0.01044603]
[1759997235873,1.04597679,121880.0,121870.0,0.01044603]
[1759997236087,0.87544665,121880.0,121870.0,0.01044603]
[1759997236505,0.47883082,121880.0,121870.0,0.17455532]
[1759997236739,0.08512206,121880.0,121870.0,0.18173532]
[1759997237028,0.08512206,121880.0,121870.0,0.21464722]
[1759997237441,0.08512206,121880.0,121870.0,0.21188722]
[1759997238964,0.002,121880.0,121870.0,0.21464722]
[1759997239184,0.002,121880.0,121870.0,0.44716722]
[1759997239846,0.002,121880.0,121870.0,0.21464722]
[1759997240056,0.002,121880.0,121870.0,0.52972722]
[1759997240277,0.01806,121880.0,121870.0,0.52972722]
[1759997240491,0.002,121880.0,121870.0,0.52972722]
[1759997240714,0.01806,121880.0,121870.0,0.44436722]
[1759997241796,0.002,121880.0,121870.0,0.21188722]
[1759997242053,0.002,121880.0,121870.0,0.44436722]
[1759997242893,0.002,121880.0,121870.0,0.21188722]
[1759997243205,0.002,121880.0,121870.0,0.44432722]
[1759997243858,0.002,121880.0,121870.0,0.21188722]
[1759997244063,0.002,121880.0,121870.0,0.52968722]
[1759997244895,0.01806,121880.0,121870.0,0.21188722]
[1759997245122,0.01806,121880.0,121870.0,0.52968722]
[1759997245338,0.01806,121880.0,121870.0,0.21188722]
[1759997245769,0.01806,121880.0,121870.0,0.52964722]
[1759997246216,0.002,121880.0,121870.0,0.21188722]
[1759997246428,0.05319,121880.0,121870.0,0.43986722]
[1759997246642,0.11026014,121880.0,121870.0,0.43986722]
[1759997246853,0.05319,121880.0,121870.0,0.43986722]
[1759997247080,0.05319,121880.0,121870.0,0.20746722]
[1759997247338,0.05319,121880.0,121870.0,0.43986722]
[1759997247545,0.02947,121880.0,121870.0,0.44428722]
[1759997247971,0.01341,121880.0,121870.0,0.44428722]
[1759997248463,0.002,121880.0,121870.0,0.44704722]
[1759997248881,0.002,121880.0,121870.0,0.44428722]
[1759997249879,0.002,121880.0,121870.0,0.55610598]
[1759997250079,0.002,121880.0,121870.0,0.78846598]
[1759997250460,0.002,121880.0,121870.0,0.81310719]
[1759997250677,0.002,121880.0,121870.0,0.58074719]
[1759997250973,0.002,121880.0,121870.0,0.89846719]
[1759997251380,0.002,121880.0,121870.0,0.66610719]
[1759997251555,0.002,121880.0,121870.0,0.89846719]
[1759997251986,0.002,121880.0,121870.0,0.89146719]
[1759997252187,0.002,121880.0,121870.0,0.57374719]
[1759997252408,0.002,121880.0,121870.0,0.56100843]
[1759997253155,0.002,121880.0,121870.0,0.24328843]
[1759997253371,0.01806,121880.0,121870.0,0.55820843]
[1759997253582,0.002,121880.0,121870.0,0.56096843]
[1759997253793,0.002,121880.0,121870.0,0.55820843]
[1759997254652,0.002,121880.0,121870.0,0.56096843]
[1759997254862,0.03513,121890.0,121880.0,0.19424773]
[1759997255290,0.05119,121890.0,121880.0,0.19578213]
[1759997255507,0.02747,121890.0,121880.0,0.20020213]
[1759997255730,0.02747,121890.0,121880.0,0.43248213]
[1759997255974,0.02847,121890.0,121880.0,0.43648213]
[1759997256431,0.02847,121890.0,121880.0,0.44248213]
[1759997257303,0.02847,121890.0,121880.0,0.21020213]
[1759997257747,0.05236,121890.0,121880.0,0.43806213]
[1759997258575,0.05236,121890.0,121880.0,0.44244213]
[1759997258994,0.05236,121890.0,121880.0,0.43802213]
[1759997259196,0.02847,121890.0,121880.0,0.44244213]
[1759997259417,0.05236,121890.0,121880.0,0.20578213]
[1759997259638,0.05236,121890.0,121880.0,0.43802213]
[1759997260745,0.05236,121890.0,121880.0,0.20578213]
[1759997260982,0.05236,121890.0,121880.0,0.43802213]
[1759997261817,0.05236,121890.0,121880.0,0.20578213]
[1759997262019,0.21644236,121890.0,121880.0,0.20578213]
[1759997262239,0.21644236,121890.0,121880.0,0.21020213]
[1759997262240,0.001,121890.0,121880.0,0.21020213]
[1759997262445,0.001,121890.0,121880.0,0.44240213]
[1759997262651,0.001,121890.0,121880.0,0.21020213]
[1759997262863,0.21676236,121890.0,121880.0,0.20578213]
[1759997263072,0.21676236,121890.0,121880.0,0.2738863]
[1759997263294,0.3733106,121890.0,121880.0,0.2437344]
[1759997263943,0.3733106,121890.0,121880.0,0.0115344]
[1759997264157,0.3733106,121890.0,121880.0,0.2438544]
[1759997266934,0.3733106,121890.0,121880.0,0.0115344]
[1759997267071,0.3733106,121890.0,121880.0,0.40791023]
[1759997267072,0.29988442,121890.0,121880.0,0.40791023]
[1759997267935,0.29988442,121890.0,121880.0,0.2438144]
[1759997269405,0.29988442,121890.0,121880.0,0.2437744]
[1759997270215,0.29988442,121890.0,121880.0,0.0115344]
[1759997270418,0.29988442,121890.0,121880.0,0.2437744]
[1759997270646,0.37988122,121890.0,121880.0,0.2437744]
[1759997272686,0.29988442,121890.0,121880.0,0.2435899]
[1759997272898,0.29988442,121890.0,121880.0,0.0113499]
[1759997273105,0.29988442,121890.0,121880.0,0.2435899]
[1759997273316,0.29988442,121890.0,121880.0,0.0113499]
[1759997273552,0.29988442,121890.0,121880.0,0.2435499]
[1759997274826,0.29988442,121890.0,121880.0,0.0113499]
[1759997275029,0.29988442,121890.0,121880.0,0.2435499]
[1759997275712,0.29988442,121890.0,121880.0,0.40764573]
[1759997276787,0.29988442,121890.0,121880.0,0.40760573]
[1759997280696,0.32530042,121890.0,121880.0,0.40760573]
[1759997281091,0.16121806,121890.0,121880.0,0.40760573]
[1759997281943,0.32530042,121890.0,121880.0,0.40760573]
[1759997282412,0.16121806,121890.0,121880.0,0.40760573]
[1759997282683,0.16121806,121890.0,121880.0,0.40756573]
[1759997283131,0.32530042,121890.0,121880.0,0.40756573]
[1759997283559,0.16121806,121890.0,121880.0,0.40756573]
[1759997284850,0.32530042,121890.0,121880.0,0.40756573]
[1759997285717,0.32530042,121890.0,121880.0,0.40732242]
[1759997286627,0.16121806,121890.0,121880.0,0.40732242]
[1759997287566,0.32530042,121890.0,121880.0,0.40732242]
[1759997287800,0.32530042,121890.0,121880.0,0.40728242]
[1759997288645,0.32530042,121890.0,121880.0,0.40724242]
[1759997288855,0.40529722,121890.0,121880.0,0.17520242]
[1759997289076,0.32530042,121890.0,121880.0,0.40724242]
[1759997289813,0.16121806,121890.0,121880.0,0.17520242]
[1759997290261,0.16121806,121890.0,121880.0,0.78327308]
[1759997290262,0.026416,121890.0,121880.0,0.78327308]
[1759997290481,0.026416,121890.0,121880.0,0.44181432]
[1759997290695,0.026416,121890.0,121880.0,0.78603308]
[1759997290922,0.041876,121890.0,121880.0,0.20977432]
[1759997291136,0.26298385,121890.0,121880.0,0.43747432]
[1759997291365,0.07348549,121890.0,121880.0,0.22999577]
[1759997291556,0.04871549,121890.0,121880.0,0.46653577]
[1759997292403,0.04871549,121890.0,121880.0,0.23441577]
[1759997292651,0.07348549,121890.0,121880.0,0.46653577]
[1759997292856,0.04871549,121890.0,121880.0,0.46653577]
[1759997293061,0.02847,121890.0,121880.0,0.46653577]
[1759997293678,0.05324,121890.0,121880.0,0.22999577]
[1759997293892,0.05324,121890.0,121880.0,0.46207577]
[1759997294295,0.05324,121890.0,121880.0,0.22999577]
[1759997294508,0.05324,121890.0,121880.0,0.46207577]
[1759997295550,0.07616789,121890.0,121880.0,0.46211577]
[1759997296870,0.05324,121890.0,121880.0,0.46211577]
[1759997297285,0.25497355,121910.0,121880.0,0.48951577]
[1759997297570,0.25684099,121900.0,121880.0,0.48550318]
[1759997298069,0.51285336,121900.0,121880.0,0.48550318]
[1759997298285,0.51285336,121900.0,121890.0,0.16408236]
[1759997298503,0.52831336,121900.0,121890.0,0.16408236]
[1759997298819,0.52831336,121900.0,121880.0,0.47128318]
[1759997299053,0.52831336,121900.0,121880.0,0.47028318]
[1759997299277,0.55137336,121900.0,121890.0,0.23208]
[1759997299495,0.55637336,121900.0,121890.0,0.23208]
[1759997299717,0.55137336,121900.0,121890.0,0.23208]
[1759997300126,0.55437336,121900.0,121890.0,0.23208]
[1759997300342,0.55437336,121900.0,121880.0,0.001]
[1759997300343,0.16408236,121890.0,121880.0,0.001]
[1759997300557,0.99182916,121890.0,121880.0,0.001]
[1759997300775,0.28372442,121890.0,121880.0,0.001]
[1759997300986,0.51632442,121890.0,121880.0,0.001]
[1759997301197,0.16409583,121880.0,121870.0,0.01258]
[1759997301410,0.24721789,121880.0,121870.0,0.26769]
[1759997301630,0.24721789,121880.0,121870.0,0.28291]
[1759997301839,0.26267789,121880.0,121870.0,0.2604]
[1759997302046,0.27408789,121880.0,121870.0,0.0278]
[1759997302261,0.27408789,121880.0,121870.0,0.0308]
[1759997302470,0.27408789,121880.0,121870.0,0.2634]
[1759997302682,0.27408789,121880.0,121870.0,0.0308]
[1759997302885,0.27408789,121880.0,121870.0,0.26501822]
[1759997303126,0.27508789,121880.0,121870.0,0.26801822]
[1759997303817,0.27508789,121880.0,121870.0,0.03541822]
[1759997304019,0.25962789,121880.0,121870.0,0.29052822]
[1759997304225,0.25962789,121880.0,121870.0,0.45463751]
[1759997304840,0.25962789,121880.0,121870.0,0.05792822]
[1759997305058,0.25962789,121880.0,121870.0,0.29052822]
[1759997305456,0.25962789,121880.0,121870.0,0.29048822]
[1759997305866,0.25962789,121880.0,121870.0,0.29052822]
[1759997306269,0.27508789,121880.0,121870.0,0.05792822]
[1759997306497,0.27508789,121880.0,121870.0,0.29048822]
[1759997306844,0.27508789,121880.0,121870.0,0.05792822]
[1759997307051,0.27508789,121880.0,121870.0,0.29048822]
[1759997307781,0.25962789,121880.0,121870.0,0.05792822]
[1759997307997,0.25962789,121880.0,121870.0,0.29048822]
[1759997308427,0.27508789,121880.0,121870.0,0.29048822]
[1759997308821,0.27508789,121880.0,121870.0,0.05792822]
[1759997309163,0.27508789,121880.0,121870.0,0.29048822]
[1759997309352,0.27508789,121880.0,121870.0,0.05792822]
[1759997309576,0.27508789,121880.0,121870.0,0.25271822]
[1759997309795,0.29614789,121880.0,121870.0,0.00801822]
[1759997310003,0.29614789,121880.0,121870.0,0.24053822]
[1759997310210,0.55216026,121880.0,121870.0,0.24053822]
[1759997310640,0.53110026,121880.0,121870.0,0.24053822]
[1759997311047,0.55216026,121880.0,121870.0,0.24053822]
[1759997311255,0.63215706,121880.0,121870.0,0.00801822]
[1759997312070,0.55216026,121880.0,121870.0,0.00801822]
[1759997312691,0.80817263,121880.0,121870.0,0.00801822]
[1759997312888,1.04069263,121880.0,121870.0,0.00801822]
[1759997313161,0.80817263,121880.0,121870.0,0.00801822]
[1759997313496,1.04073263,121880.0,121870.0,0.00801822]
[1759997313705,0.99280263,121880.0,121870.0,0.00801822]
[1759997314277,1.07279943,121880.0,121870.0,0.00801822]
[1759997314764,1.33280263,121880.0,121870.0,0.00801822]
[1759997315365,1.10024263,121880.0,121870.0,0.00801822]
[1759997315543,1.33280263,121880.0,121870.0,0.00801822]
[1759997315910,1.33276263,121880.0,121870.0,0.00801822]
[1759997316316,0.58821789,121880.0,121870.0,0.00801822]
[1759997316494,1.4104575,121880.0,121870.0,0.00801822]
[1759997316922,1.1779375,121880.0,121870.0,0.00801822]
[1759997317131,1.4104575,121880.0,121870.0,0.00801822]
[1759997318435,1.4104175,121880.0,121870.0,0.00801822]
[1759997319255,1.4104175,121880.0,121870.0,0.00501822]
[1759997319465,1.4104175,121880.0,121870.0,0.00601822]
[1759997320090,1.4094175,121880.0,121870.0,0.00301822]
[1759997320298,1.43406827,121880.0,121870.0,0.00301822]
[1759997320500,1.43506827,121880.0,121870.0,0.00401822]
[1759997320876,1.43406827,121880.0,121870.0,0.00201822]
[1759997321291,1.44706827,121880.0,121870.0,0.00201822]
[1759997321491,1.3693734,121880.0,121870.0,0.00201822]
[1759997322325,1.1368934,121880.0,121870.0,0.00201822]
[1759997322534,1.3694534,121880.0,121870.0,0.00201822]
[1759997322844,1.1368934,121880.0,121870.0,0.00201822]
[1759997322990,1.3694134,121880.0,121870.0,0.00201822]
[1759997323192,1.39658432,121880.0,121870.0,0.00201822]
[1759997324241,1.3694134,121880.0,121870.0,0.00201822]
[1759997326208,1.38471378,121880.0,121870.0,0.00201822]
[1759997327245,1.15219378,121880.0,121870.0,0.00201822]
[1759997327667,1.38467378,121880.0,121870.0,0.00201822]
[1759997328537,1.3923259,121880.0,121870.0,0.00201822]
[1759997328758,1.72833507,121880.0,121870.0,0.00201822]
[1759997328969,1.75301953,121880.0,121870.0,1e-08]
[1759997329175,1.83837953,121880.0,121870.0,1e-08]
[1759997329820,1.75838273,121880.0,121870.0,1e-08]
[1759997330048,0.67250562,121880.0,121870.0,1e-08]
[1759997330252,1.50237036,121880.0,121870.0,1e-08]
[1759997330460,1.52590273,121880.0,121870.0,1e-08]
[1759997330720,1.75838273,121880.0,121870.0,1e-08]
[1759997330932,1.07034242,121880.0,121870.0,1e-08]
[1759997331150,1.58232716,121880.0,121870.0,1e-08]
[1759997331998,1.83833953,121880.0,121870.0,1e-08]
[1759997332422,1.52053953,121880.0,121870.0,1e-08]
[1759997332630,1.83833953,121880.0,121870.0,1e-08]
[1759997334991,1.60589953,121880.0,121870.0,1e-08]
[1759997335221,1.62354268,121880.0,121870.0,1e-08]
[1759997335457,1.85594268,121880.0,121870.0,1e-08]
[1759997337499,1.53818268,121880.0,121870.0,1e-08]
[1759997337718,1.85594268,121880.0,121870.0,1e-08]
[1759997339177,2.39157979,121880.0,121870.0,1e-08]
[1759997339387,2.64897978,121880.0,121870.0,1e-08]
[1759997339594,2.45967548,121880.0,121870.0,1e-08]
[1759997339826,2.37431548,121880.0,121870.0,1e-08]
[1759997340288,3.04420548,121880.0,121870.0,1e-08]
[1759997340531,0.50412276,121860.0,121850.0,1e-08]
[1759997340764,1.71884438,121860.0,121850.0,1e-08]
[1759997341012,1.74352884,121860.0,121850.0,1e-08]
[1759997341251,1.78924564,121860.0,121850.0,0.00102337]
[1759997341483,1.89960563,121860.0,121850.0,1e-08]
[1759997341718,1.89960563,121860.0,121850.0,0.00012409]
[1759997341957,1.90769225,121860.0,121850.0,1e-08]
[1759997342211,1.92569225,121860.0,121850.0,0.00100001]
[1759997342450,1.90104779,121860.0,121850.0,1e-08]
[1759997343160,1.90100779,121860.0,121850.0,1e-08]
[1759997343386,1.56214779,121860.0,121850.0,1e-08]
[1759997343694,1.87994779,121860.0,121850.0,1e-08]
[1759997344169,1.88894779,121860.0,121850.0,1e-08]
[1759997344407,1.59220779,121860.0,121850.0,1e-08]
[1759997344638,1.9342222,121860.0,121850.0,1e-08]
[1759997344864,1.76347345,121860.0,121850.0,1e-08]
[1759997345101,1.65701345,121860.0,121850.0,1e-08]
[1759997345341,1.97481345,121860.0,121850.0,1e-08]
[1759997345580,1.65701345,121860.0,121850.0,1e-08]
[1759997345815,1.99587345,121860.0,121850.0,1e-08]
[1759997346046,1.67807345,121860.0,121850.0,1e-08]
[1759997346276,1.99587345,121860.0,121850.0,1e-08]
[1759997347368,1.94002904,121860.0,121850.0,0.03477001]
[1759997347857,1.95055904,121860.0,121850.0,0.01207001]
[1759997348310,1.86515904,121860.0,121850.0,0.01207001]
[1759997348542,1.95055904,121860.0,121850.0,0.01207001]
[1759997349236,1.63279904,121860.0,121850.0,0.01207001]
[1759997349462,1.86515904,121860.0,121850.0,0.01207001]
[1759997349638,1.95056602,121860.0,121850.0,0.01207001]
[1759997349867,1.95056602,121860.0,121850.0,1e-08]
[1759997350096,0.16413623,121850.0,121840.0,0.03497]
[1759997350305,1.03765711,121850.0,121840.0,0.03505261]
[1759997350521,1.08496026,121850.0,121840.0,0.00028261]
[1759997350971,1.10961887,121850.0,121840.0,0.00028261]
[1759997351224,1.08496026,121850.0,121840.0,0.00028261]
[1759997351443,0.57893552,121850.0,121840.0,0.00028261]
[1759997351656,1.09096026,121850.0,121840.0,0.00028261]
[1759997353821,1.09095138,121850.0,121840.0,0.00028261]
[1759997354241,1.06733138,121850.0,121840.0,0.00028261]
[1759997354657,1.09095138,121850.0,121840.0,0.00028261]
[1759997355420,0.85859138,121850.0,121840.0,0.00028261]
[1759997355677,1.09091138,121850.0,121840.0,0.00028261]
[1759997355906,1.09091138,121850.0,121840.0,0.00079437]
[1759997357744,0.5041497,121840.0,121830.0,0.01207]
[1759997357956,0.16416317,121830.0,121820.0,0.03497]
[1759997358156,0.50417665,121820.0,121810.0,0.01227]
[1759997358356,1.18441138,121820.0,121810.0,0.03497]
[1759997358769,0.95209138,121820.0,121810.0,0.01227]
[1759997359017,1.27575818,121820.0,121810.0,0.01227]
[1759997359434,1.27675818,121820.0,121810.0,0.02427]
[1759997359644,1.27679818,121820.0,121810.0,0.02427]
[1759997360272,0.93006475,121820.0,121810.0,0.04697]
[1759997360496,1.27189138,121820.0,121810.0,0.04697]
[1759997360933,0.95409138,121820.0,121810.0,0.04697]
[1759997361136,0.69766475,121820.0,121810.0,0.02427]
[1759997361312,0.93006475,121820.0,121810.0,0.04697]
[1759997361495,1.35188818,121820.0,121810.0,0.04697]
[1759997362271,1.11948818,121820.0,121810.0,0.04697]
[1759997362415,1.41345503,121820.0,121810.0,0.04697]
[1759997363234,1.18105503,121820.0,121810.0,0.04697]
[1759997363435,1.0716284,121820.0,121810.0,0.04697]
[1759997363632,1.41245503,121820.0,121810.0,0.04697]
[1759997363839,1.41245503,121820.0,121810.0,0.04850572]
[1759997364052,1.41345503,121820.0,121810.0,0.04810572]
[1759997364658,1.0716284,121820.0,121810.0,0.04810572]
[1759997364858,1.41345503,121820.0,121810.0,0.04810572]
[1759997365737,0.7592316,121820.0,121810.0,0.04810572]
[1759997365957,1.33345823,121820.0,121810.0,0.04810572]
[1759997366161,0.6738316,121820.0,121810.0,0.04810572]
[1759997366364,0.9905916,121820.0,121810.0,0.03610572]
[1759997366825,0.9925916,121820.0,121810.0,0.04910572]
[1759997367043,1.33441823,121820.0,121810.0,0.04910572]
[1759997367256,1.41441503,121820.0,121810.0,0.04910572]
[1759997367461,1.41445503,121820.0,121810.0,0.04910572]
[1759997368316,1.18205503,121820.0,121810.0,0.04910572]
[1759997368528,1.41445503,121820.0,121810.0,0.04910572]
[1759997368936,1.41444949,121820.0,121810.0,0.04910572]
[1759997369481,1.07262286,121820.0,121810.0,0.05139572]
[1759997369683,1.18205298,121820.0,121810.0,0.05139572]
[1759997369878,1.41445298,121820.0,121810.0,0.05139572]
[1759997370675,1.41445298,121820.0,121810.0,0.02640572]
[1759997371100,1.41445298,121820.0,121810.0,0.05139572]